bitfinex/quotes_BTCUSD_20230905
["timestamp","ask_amount","ask_price","bid_price","bid_amount"]
[1693896232462,0.194,25698.0,25697.0,4.47609861]
[1693896232660,0.194,25698.0,25697.0,4.47573861]
[1693896232862,0.194,25698.0,25697.0,4.40847861]
[1693896233327,0.194,25698.0,25697.0,4.47441861]
[1693896233457,0.194,25698.0,25697.0,4.47405861]
[1693896233658,0.194,25698.0,25697.0,4.40845681]
[1693896234223,0.194,25698.0,25697.0,3.28705338]
[1693896234453,0.194,25698.0,25697.0,4.40838295]
[1693896235608,0.194,25698.0,25697.0,4.48194295]
[1693896235796,0.194,25698.0,25697.0,4.48404295]
[1693896236005,0.194,25698.0,25697.0,4.48386295]
[1693896236230,0.194,25698.0,25697.0,4.48368295]
[1693896236461,0.3646,25702.0,25699.0,1.867761]
[1693896236665,0.2097,25702.0,25701.0,0.0846]
[1693896236862,0.2097,25702.0,25701.0,1.329686]
[1693896237202,0.0479652,25702.0,25701.0,2.574772]
[1693896237584,0.27357664,25704.0,25701.0,2.574772]
[1693896237827,0.27357664,25704.0,25703.0,1.952085]
[1693896238031,0.11317664,25704.0,25703.0,1.952085]
[1693896238179,0.02,25704.0,25703.0,1.867485]
[1693896238362,0.02,25704.0,25703.0,2.023124]
[1693896238563,0.29075784,25704.0,25703.0,2.023124]
[1693896238769,0.38393448,25704.0,25703.0,2.023124]
[1693896239333,0.29075784,25704.0,25703.0,2.023124]
[1693896239924,0.29675784,25704.0,25703.0,2.023124]
[1693896240495,0.29675784,25704.0,25703.0,1.400629]
[1693896241110,0.29675784,25704.0,25703.0,2.023124]
[1693896241535,0.29675784,25704.0,25703.0,1.867485]
[1693896243914,0.29675784,25704.0,25703.0,1.47823189]
[1693896244136,0.29675784,25704.0,25703.0,1.867485]
[1693896245118,0.29675784,25704.0,25703.0,1.24499]
[1693896245396,0.29675784,25704.0,25703.0,1.867485]
[1693896245539,0.34476079,25704.0,25703.0,1.867485]
[1693896246175,0.07400295,25704.0,25703.0,1.867485]
[1693896246376,0.07400295,25704.0,25703.0,1.952085]
[1693896247570,0.07400295,25704.0,25703.0,1.32959]
[1693896247961,0.07400295,25704.0,25703.0,1.952085]
[1693896250072,0.07400295,25704.0,25703.0,1.74457095]
[1693896250857,0.07400295,25704.0,25703.0,1.82917095]
[1693896255332,0.07400295,25704.0,25703.0,2.21581622]
[1693896257661,0.05400295,25704.0,25703.0,2.21581622]
[1693896261035,0.34999621,25704.0,25702.0,0.823832]
[1693896261214,0.34999621,25704.0,25703.0,0.583589]
[1693896261988,0.34699621,25704.0,25703.0,0.583589]
[1693896263067,0.34999621,25704.0,25703.0,0.583589]
[1693896274639,0.34999621,25704.0,25702.0,1.40743]
[1693896275362,0.34699621,25704.0,25702.0,1.40743]
[1693896275795,0.34399621,25704.0,25702.0,1.40743]
[1693896276205,0.34399621,25704.0,25702.0,1.41243]
[1693896276804,0.34399621,25704.0,25702.0,1.41843]
[1693896282543,0.04800295,25704.0,25703.0,0.0846]
[1693896282766,0.04800295,25704.0,25703.0,1.251778]
[1693896283639,0.05400295,25704.0,25703.0,1.251778]
[1693896287730,0.05400295,25704.0,25703.0,1.835367]
[1693896288332,0.03455035,25704.0,25703.0,1.835367]
[1693896288470,0.05162319,25704.0,25703.0,1.835367]
[1693896297252,0.05162319,25704.0,25703.0,2.22201227]
[1693896298163,0.04862319,25704.0,25703.0,2.22201227]
[1693896298513,0.04862319,25704.0,25703.0,2.22801227]
[1693896298967,0.04562319,25704.0,25703.0,2.22201227]
[1693896299305,0.09317664,25706.0,25703.0,2.23301227]
[1693896299513,0.09317664,25706.0,25705.0,0.0846]
[1693896299741,0.09317664,25706.0,25705.0,1.835232]
[1693896300788,0.17317664,25707.0,25705.0,1.835232]
[1693896301006,0.17317664,25707.0,25706.0,1.835163]
[1693896301822,0.11317664,25707.0,25706.0,1.835163]
[1693896302217,0.09317664,25707.0,25706.0,1.835163]
[1693896302540,0.09317664,25707.0,25706.0,1.750563]
[1693896302743,0.11717664,25707.0,25706.0,1.753563]
[1693896305213,0.024,25707.0,25706.0,1.753563]
[1693896305593,0.07361402,25707.0,25706.0,1.753563]
[1693896307499,0.07361402,25707.0,25706.0,1.750563]
[1693896311464,0.26361402,25707.0,25706.0,1.750563]
[1693896313059,0.26361402,25707.0,25706.0,1.835163]
[1693896314589,0.25261402,25707.0,25706.0,1.835163]
[1693896314803,0.26361402,25707.0,25706.0,1.836163]
[1693896315007,0.25061402,25707.0,25706.0,1.836163]
[1693896315162,0.26261402,25707.0,25706.0,1.837163]
[1693896315378,0.23961402,25707.0,25706.0,1.835163]
[1693896315586,0.25061402,25707.0,25706.0,1.836163]
[1693896315815,0.26261402,25707.0,25706.0,1.837163]
[1693896319376,0.26261402,25707.0,25706.0,2.22380827]
[1693896320634,0.25018528,25707.0,25706.0,2.22380827]
[1693896320838,0.23918528,25707.0,25706.0,2.22280827]
[1693896321268,0.24218528,25707.0,25706.0,2.22280827]
[1693896321785,0.23918528,25707.0,25706.0,2.22280827]
[1693896321983,0.19,25707.0,25706.0,2.22680827]
[1693896322459,0.194,25707.0,25706.0,2.22680827]
[1693896322662,0.19,25707.0,25706.0,2.22680827]
[1693896323094,0.19,25707.0,25706.0,2.23180827]
[1693896330883,0.22709873,25707.0,25706.0,2.26317182]
[1693896331091,0.22762863,25707.0,25706.0,2.26317182]
[1693896334997,0.22777545,25707.0,25706.0,2.26317182]
[1693896345576,0.22777545,25707.0,25706.0,3.3841679]
[1693896353505,0.19067672,25707.0,25706.0,3.3841679]
[1693896354100,0.19,25707.0,25706.0,3.3841679]
[1693896355465,0.19,25707.0,25706.0,3.4529879]
[1693896355666,0.19,25707.0,25706.0,3.4513679]
[1693896355909,0.19,25707.0,25706.0,3.4503479]
[1693896356155,0.19,25707.0,25706.0,3.4513079]
[1693896356362,0.19,25707.0,25706.0,3.4526879]
[1693896356684,0.19,25707.0,25706.0,3.4571879]
[1693896356821,0.19,25707.0,25706.0,3.4597679]
[1693896357049,0.19,25707.0,25706.0,3.7961679]
[1693896357225,0.19,25707.0,25706.0,3.7953879]
[1693896357619,0.19,25707.0,25706.0,3.7935279]
[1693896357792,0.19,25707.0,25706.0,3.7925079]
[1693896358011,0.19,25707.0,25706.0,3.7924479]
[1693896358138,0.19,25707.0,25706.0,3.7931079]
[1693896358342,0.19,25707.0,25706.0,3.7946679]
[1693896358538,0.19,25707.0,25706.0,3.7937679]
[1693896358743,0.19,25707.0,25706.0,3.7930479]
[1693896358989,0.19,25707.0,25706.0,3.7929879]
[1693896359166,0.19,25707.0,25706.0,3.7924479]
[1693896359366,0.19,25707.0,25706.0,3.7896279]
[1693896359567,0.19,25707.0,25706.0,3.7241679]
[1693896359770,0.19,25707.0,25706.0,3.7905879]
[1693896359966,0.19,25707.0,25706.0,3.7241679]
[1693896360485,0.19,25707.0,25706.0,3.7906479]
[1693896360704,0.19,25707.0,25706.0,3.7241679]
[1693896362724,0.19,25707.0,25706.0,3.81757374]
[1693896373173,0.19,25707.0,25706.0,2.69657766]
[1693896373373,0.19,25707.0,25706.0,3.81753286]
[1693896379312,0.19,25707.0,25706.0,3.77753286]
[1693896379517,0.19,25707.0,25706.0,3.81753286]
[1693896380449,0.19,25707.0,25706.0,3.74616931]
[1693896380721,0.19,25707.0,25706.0,3.78616931]
[1693896380954,0.19,25707.0,25706.0,3.76616931]
[1693896380955,0.22704209,25707.0,25706.0,3.76616931]
[1693896381175,0.22776724,25707.0,25706.0,3.78616931]
[1693896383208,0.51274068,25707.0,25706.0,3.3061182]
[1693896383617,0.51274068,25707.0,25706.0,2.185163]
[1693896392348,0.22776724,25707.0,25706.0,3.69283487]
[1693896392785,0.19072515,25707.0,25706.0,3.69283487]
[1693896393044,0.19,25707.0,25706.0,3.69283487]
[1693896395164,0.2277392,25707.0,25706.0,3.69283487]
[1693896396408,0.19072476,25707.0,25706.0,3.69283487]
[1693896396582,0.22774092,25707.0,25706.0,3.69283487]
[1693896398980,0.22774092,25707.0,25706.0,3.60823487]
[1693896399163,0.22774092,25707.0,25706.0,2.48720827]
[1693896400319,0.22774092,25707.0,25706.0,2.57180827]
[1693896400531,0.22774092,25707.0,25706.0,3.69284032]
[1693896401592,0.19072476,25707.0,25706.0,3.69284032]
[1693896402006,0.19,25707.0,25706.0,3.69284032]
[1693896410317,0.19,25707.0,25706.0,3.65284032]
[1693896410463,0.19,25707.0,25706.0,3.69284032]
[1693896411923,0.19,25707.0,25706.0,3.78624616]
[1693896412144,0.19,25707.0,25706.0,3.81674454]
[1693896413276,0.19,25707.0,25706.0,3.85563454]
[1693896413901,0.19,25707.0,25706.0,3.85063454]
[1693896414319,0.191,25707.0,25706.0,3.86663454]
[1693896414521,0.19,25707.0,25706.0,3.84563454]
[1693896414945,0.191,25707.0,25706.0,3.86663454]
[1693896415757,0.191,25707.0,25706.0,3.88863454]
[1693896416092,0.191,25707.0,25706.0,3.86663454]
[1693896416477,0.191,25707.0,25706.0,3.88863454]
[1693896424573,0.191,25707.0,25706.0,2.76760249]
[1693896424779,0.191,25707.0,25706.0,3.88855188]
[1693896436945,0.191,25707.0,25706.0,4.02866065]
[1693896437141,0.191,25707.0,25706.0,3.88855188]
[1693896437558,0.191,25707.0,25706.0,4.02866065]
[1693896442375,0.191,25707.0,25706.0,3.94406065]
[1693896442576,0.191,25707.0,25706.0,3.71054604]
[1693896442780,0.23541526,25707.0,25706.0,3.71054604]
[1693896442983,0.2360789,25707.0,25706.0,3.71054604]
[1693896455349,0.53066543,25707.0,25706.0,3.71054604]
[1693896455713,0.53066543,25707.0,25706.0,2.58959665]
[1693896456117,0.53066543,25707.0,25706.0,1.61943038]
[1693896456528,0.2360789,25707.0,25706.0,2.20295138]
[1693896459095,0.2360789,25707.0,25706.0,2.18295138]
[1693896459671,0.2360789,25707.0,25706.0,2.132453]
[1693896462007,0.52463408,25707.0,25706.0,2.132453]
[1693896462182,0.52463408,25707.0,25706.0,1.248932]
[1693896463808,0.52463408,25707.0,25706.0,0.08189]
[1693896473774,1.30263208,25707.0,25706.0,0.08189]
[1693896473910,1.0140769,25707.0,25706.0,0.05989]
[1693896474120,2.00137411,25707.0,25703.0,0.03889]
[1693896474329,2.00237411,25707.0,25706.0,0.013]
[1693896475130,1.7920749,25707.0,25706.0,0.013]
[1693896476138,2.01338877,25707.0,25706.0,0.013]
[1693896479134,1.7920749,25707.0,25706.0,0.013]
[1693896481506,2.0071611,25707.0,25706.0,0.013]
[1693896481742,1.7920749,25707.0,25706.0,0.013]
[1693896482710,2.07039316,25707.0,25706.0,0.013]
[1693896482913,1.7920749,25707.0,25706.0,0.013]
[1693896484437,2.04581053,25707.0,25706.0,0.013]
[1693896489481,1.7920749,25707.0,25706.0,0.013]
[1693896493274,2.09590643,25707.0,25706.0,0.013]
[1693896493494,0.2360789,25707.0,25706.0,0.013]
[1693896493711,0.2360789,25707.0,25706.0,0.0978]
[1693896497522,0.2360789,25707.0,25706.0,0.013]
[1693896497723,1.3475206,25707.0,25706.0,0.013]
[1693896498336,2.1255186,25707.0,25706.0,0.013]
[1693896498536,2.11310972,25707.0,25706.0,0.013]
[1693896499763,1.86446602,25707.0,25706.0,0.013]
[1693896501747,2.14328074,25707.0,25706.0,0.013]
[1693896502417,2.23635012,25707.0,25706.0,0.013]
[1693896506113,2.0575354,25707.0,25706.0,0.013]
[1693896506320,2.19713947,25707.0,25706.0,0.013]
[1693896507088,2.48094884,25707.0,25706.0,0.013]
[1693896507511,2.19713947,25707.0,25706.0,0.013]
[1693896510255,2.97513747,25707.0,25706.0,0.013]
[1693896510661,3.25152282,25707.0,25706.0,0.013]
[1693896511682,2.97513747,25707.0,25706.0,0.013]
[1693896512340,2.88206809,25707.0,25706.0,0.013]
[1693896516907,4.19523272,25707.0,25706.0,0.013]
[1693896517116,4.23155682,25707.0,25706.0,0.013]
[1693896517564,4.51076497,25707.0,25706.0,0.013]
[1693896518061,4.23155682,25707.0,25706.0,0.013]
[1693896518281,4.23055682,25707.0,25706.0,0.013]
[1693896518614,4.25355682,25707.0,25706.0,0.015]
[1693896518828,4.25355682,25707.0,25706.0,0.002]
[1693896519229,4.25355682,25707.0,25706.0,0.007]
[1693896519613,4.25355682,25707.0,25706.0,0.002]
[1693896519790,4.40775682,25707.0,25706.0,0.002]
[1693896520024,4.41575682,25707.0,25706.0,0.004]
[1693896520458,4.39275682,25707.0,25706.0,0.002]
[1693896520676,4.26055682,25707.0,25706.0,0.004]
[1693896523320,4.26401922,25707.0,25706.0,0.004]
[1693896528460,4.07401922,25707.0,25706.0,0.004]
[1693896528664,4.07401922,25707.0,25706.0,0.194]
[1693896531940,4.2599214,25707.0,25706.0,0.194]
[1693896534273,4.07401922,25707.0,25706.0,0.194]
[1693896534471,4.60309304,25707.0,25706.0,0.194]
[1693896543093,4.89473767,25707.0,25706.0,0.194]
[1693896543393,4.46496389,25707.0,25706.0,0.194]
[1693896544581,3.94118885,25707.0,25706.0,0.194]
[1693896544791,3.88118885,25707.0,25706.0,0.194]
[1693896544998,3.90118885,25707.0,25706.0,0.194]
[1693896546599,3.88118885,25707.0,25706.0,0.194]
[1693896547303,3.59387253,25707.0,25706.0,0.194]
[1693896547507,3.9805178,25707.0,25706.0,0.194]
[1693896548258,4.0005178,25707.0,25706.0,0.194]
[1693896548469,3.90102941,25707.0,25706.0,0.194]
[1693896548670,3.20723891,25707.0,25706.0,0.194]
[1693896548873,3.06773887,25707.0,25706.0,0.194]
[1693896549922,3.20724871,25707.0,25706.0,0.194]
[1693896550943,3.06773887,25707.0,25706.0,0.194]
[1693896551168,2.77609424,25707.0,25706.0,0.194]
[1693896551370,3.42978598,25707.0,25706.0,0.194]
[1693896551572,3.85737971,25707.0,25706.0,0.194]
[1693896552299,5.02202298,25707.0,25706.0,0.194]
[1693896552501,4.78956303,25707.0,25706.0,0.194]
[1693896559169,5.19615118,25707.0,25706.0,0.194]
[1693896559381,5.50000205,25707.0,25706.0,0.194]
[1693896559587,6.02384862,25707.0,25706.0,0.194]
[1693896559779,6.02414862,25707.0,25706.0,0.194]
[1693896560016,5.7444496,25707.0,25706.0,0.194]
[1693896560332,5.7438496,25707.0,25706.0,0.194]
[1693896560488,5.7434896,25707.0,25706.0,0.194]
[1693896560687,5.7431296,25707.0,25706.0,0.194]
[1693896560990,5.7422896,25707.0,25706.0,0.194]
[1693896561151,5.7419896,25707.0,25706.0,0.194]
[1693896561353,5.7418096,25707.0,25706.0,0.194]
[1693896561557,5.7441496,25707.0,25706.0,0.194]
[1693896561758,6.4421096,25707.0,25706.0,0.194]
[1693896561957,6.4417496,25707.0,25706.0,0.194]
[1693896562158,6.4404296,25707.0,25706.0,0.194]
[1693896562435,6.4400696,25707.0,25706.0,0.194]
[1693896562729,6.4388696,25707.0,25706.0,0.194]
[1693896562885,6.4387496,25707.0,25706.0,0.194]
[1693896563085,6.4385096,25707.0,25706.0,0.194]
[1693896563308,6.4381496,25707.0,25706.0,0.194]
[1693896563516,5.7408496,25707.0,25706.0,0.194]
[1693896563718,5.7407896,25707.0,25706.0,0.194]
[1693896563915,5.7404896,25707.0,25706.0,0.194]
[1693896564066,5.7398896,25707.0,25706.0,0.194]
[1693896564279,5.7396496,25707.0,25706.0,0.194]
[1693896564478,5.7392896,25707.0,25706.0,0.194]
[1693896564680,5.7389296,25707.0,25706.0,0.194]
[1693896564929,5.7386896,25707.0,25706.0,0.194]
[1693896565126,5.7382096,25707.0,25706.0,0.194]
[1693896565327,5.6726896,25707.0,25706.0,0.194]
[1693896573390,5.95202063,25707.0,25706.0,0.194]
[1693896573936,5.6726896,25707.0,25706.0,0.194]
[1693896574382,5.6926896,25707.0,25706.0,0.194]
[1693896574560,5.97201461,25707.0,25706.0,0.194]
[1693896575582,6.67201461,25707.0,25706.0,0.194]
[1693896576904,6.14888804,25707.0,25706.0,0.194]
[1693896578628,6.67264171,25707.0,25706.0,0.194]
[1693896579774,6.14888804,25707.0,25706.0,0.194]
[1693896580347,5.44888804,25707.0,25706.0,0.194]
[1693896581133,5.97267828,25707.0,25706.0,0.194]
[1693896581933,5.44888804,25707.0,25706.0,0.194]
[1693896586192,5.69343952,25707.0,25706.0,0.194]
[1693896586575,5.97272714,25707.0,25706.0,0.194]
[1693896587851,5.69343952,25707.0,25706.0,0.194]
[1693896589948,6.67272769,25707.0,25706.0,0.194]
[1693896590549,6.67273014,25707.0,25706.0,0.194]
[1693896591426,6.39343952,25707.0,25706.0,0.194]
[1693896594098,6.47823952,25707.0,25706.0,0.194]
[1693896594304,6.45823952,25707.0,25706.0,0.194]
[1693896595322,6.46990974,25707.0,25706.0,0.194]
[1693896598353,6.42990974,25707.0,25706.0,0.194]
[1693896598559,6.40990974,25707.0,25706.0,0.194]
[1693896602502,0.02,25703.0,25697.0,0.004796]
[1693896602718,0.02,25703.0,25698.0,0.11599715]
[1693896602719,0.09316382,25699.0,25698.0,0.11599715]
[1693896602918,1.73444382,25699.0,25697.0,0.004796]
[1693896603266,0.0848,25698.0,25697.0,0.004796]
[1693896603466,2.41961,25698.0,25697.0,0.004796]
[1693896603692,2.41961,25698.0,25694.0,0.058706]
[1693896603902,0.27064382,25697.0,25695.0,0.03891]
[1693896604106,1.556662,25696.0,25695.0,0.03891]
[1693896604325,1.641462,25696.0,25695.0,0.03891]
[1693896604510,2.419793,25696.0,25695.0,0.03891]
[1693896605049,2.4204457,25696.0,25695.0,0.06291]
[1693896605423,2.45676628,25696.0,25695.0,0.06291]
[1693896605626,2.45676628,25696.0,25695.0,0.25291]
[1693896606197,2.45876628,25696.0,25695.0,0.27691]
[1693896606413,2.73178014,25696.0,25695.0,0.27691]
[1693896611175,0.03897328,25696.0,25695.0,0.36171]
[1693896611389,0.03897328,25696.0,25695.0,0.90301338]
[1693896611596,0.03897328,25696.0,25695.0,2.65322827]
[1693896611798,0.03897328,25696.0,25695.0,2.65232827]
[1693896612003,0.03897328,25696.0,25695.0,2.64896827]
[1693896612185,0.03897328,25696.0,25695.0,1.99589727]
[1693896612415,0.03897328,25696.0,25695.0,1.41212627]
[1693896612806,0.03897328,25696.0,25695.0,0.82835527]
[1693896614258,0.03897328,25696.0,25695.0,1.41212627]
[1693896616612,0.03897328,25696.0,25695.0,0.82835527]
[1693896634019,0.27212145,25696.0,25695.0,0.35691]
[1693896634235,1.05045245,25696.0,25695.0,0.35691]
[1693896635757,1.05045245,25696.0,25695.0,0.27691]
[1693896638239,1.82878345,25696.0,25695.0,0.27691]
[1693896644592,1.05045245,25696.0,25695.0,0.27691]
[1693896649682,1.82878345,25696.0,25695.0,0.27691]
[1693896650454,2.60711445,25696.0,25695.0,0.27691]
[1693896664072,2.73800525,25696.0,25695.0,0.27691]
[1693896664518,3.07272067,25696.0,25695.0,0.27691]
[1693896664719,2.82280525,25696.0,25695.0,0.27691]
[1693896665135,2.82280525,25696.0,25695.0,0.25291]
[1693896665136,2.82080525,25696.0,25695.0,0.25291]
[1693896665342,2.82080525,25696.0,25695.0,0.27691]
[1693896665553,2.82080525,25696.0,25695.0,0.25291]
[1693896665969,3.22645052,25696.0,25695.0,0.23591]
[1693896666180,3.31950972,25696.0,25695.0,0.23591]
[1693896666785,3.45909852,25696.0,25695.0,0.23591]
[1693896666989,3.31950972,25696.0,25695.0,0.23591]
[1693896667578,3.32050972,25696.0,25695.0,0.24491]
[1693896667988,3.32050972,25696.0,25695.0,0.206]
[1693896668345,3.48009852,25696.0,25695.0,0.206]
[1693896668551,3.46009852,25696.0,25695.0,0.206]
[1693896668785,3.33950972,25696.0,25695.0,0.197]
[1693896668988,3.33850972,25696.0,25695.0,0.19]
[1693896669548,3.36250972,25696.0,25695.0,0.192]
[1693896670068,3.50209852,25696.0,25695.0,0.192]
[1693896671067,3.52609852,25696.0,25695.0,0.194]
[1693896671798,3.38650972,25696.0,25695.0,0.194]
[1693896672000,3.66514591,25696.0,25695.0,0.194]
[1693896672844,3.38650972,25696.0,25695.0,0.194]
[1693896673409,3.52609852,25696.0,25695.0,0.194]
[1693896673811,3.38650972,25696.0,25695.0,0.194]
[1693896674557,3.52609852,25696.0,25695.0,0.194]
[1693896674959,3.49303932,25696.0,25695.0,0.194]
[1693896675156,3.97176731,25696.0,25695.0,0.194]
[1693896675360,3.97176787,25696.0,25695.0,0.194]
[1693896675734,4.01829747,25696.0,25695.0,0.194]
[1693896675934,4.20422933,25696.0,25695.0,0.194]
[1693896676137,4.28902933,25696.0,25695.0,0.194]
[1693896676780,4.58902933,25696.0,25695.0,0.194]
[1693896677009,4.58900534,25696.0,25695.0,0.194]
[1693896677537,4.64787337,25696.0,25695.0,0.194]
[1693896677708,4.4619655,25696.0,25695.0,0.194]
[1693896677883,4.64785599,25696.0,25695.0,0.194]
[1693896678315,5.34785599,25696.0,25695.0,0.194]
[1693896679127,5.34785599,25696.0,25695.0,0.1142574]
[1693896679941,5.11520799,25696.0,25695.0,0.1142574]
[1693896680740,5.14668488,25696.0,25695.0,0.1142574]
[1693896681866,4.71448593,25696.0,25695.0,0.1142574]
[1693896683340,4.85385644,25696.0,25695.0,0.1142574]
[1693896683543,4.71448593,25696.0,25695.0,0.1142574]
[1693896683978,4.85384871,25696.0,25695.0,0.1142574]
[1693896685625,4.92440871,25696.0,25695.0,0.1142574]
[1693896685851,4.92458871,25696.0,25695.0,0.1142574]
[1693896686056,4.92494871,25696.0,25695.0,0.1142574]
[1693896686252,4.84960593,25696.0,25695.0,0.1142574]
[1693896686429,4.84996593,25696.0,25695.0,0.1142574]
[1693896686632,5.2067548,25696.0,25695.0,0.1142574]
[1693896686830,4.5067548,25696.0,25695.0,0.1142574]
[1693896687037,4.07448593,25696.0,25695.0,0.1142574]
[1693896687237,4.50695936,25696.0,25695.0,0.1142574]
[1693896687399,4.07448593,25696.0,25695.0,0.1142574]
[1693896687602,4.50695796,25696.0,25695.0,0.1142574]
[1693896688014,4.44808993,25696.0,25695.0,0.1142574]
[1693896688980,4.0156179,25696.0,25695.0,0.1142574]
[1693896689918,4.67757674,25696.0,25695.0,0.1142574]
[1693896690152,4.44818084,25696.0,25695.0,0.1142574]
[1693896690581,3.9308179,25696.0,25695.0,0.1142574]
[1693896690796,4.07015338,25696.0,25695.0,0.1142574]
[1693896691000,4.85495338,25696.0,25695.0,0.1142574]
[1693896691206,5.05280136,25696.0,25695.0,0.1142574]
[1693896691380,5.21650936,25696.0,25695.0,0.1142574]
[1693896691837,5.64961078,25696.0,25695.0,0.1142574]
[1693896692912,5.71519078,25696.0,25695.0,0.1142574]
[1693896693090,5.71543078,25696.0,25695.0,0.1142574]
[1693896693291,5.71555078,25696.0,25695.0,0.1142574]
[1693896693481,5.71537078,25696.0,25695.0,0.1142574]
[1693896693677,5.71543078,25696.0,25695.0,0.1142574]
[1693896693906,5.71555078,25696.0,25695.0,0.1142574]
[1693896694079,5.71579078,25696.0,25695.0,0.1142574]
[1693896694287,5.64961078,25696.0,25695.0,0.1142574]
[1693896694501,5.71525078,25696.0,25695.0,0.1142574]
[1693896694702,5.71627078,25696.0,25695.0,0.1142574]
[1693896694912,5.71615078,25696.0,25695.0,0.1142574]
[1693896695112,5.71579078,25696.0,25695.0,0.1142574]
[1693896695358,5.71681078,25696.0,25695.0,0.1142574]
[1693896695566,5.73639078,25696.0,25695.0,0.1142574]
[1693896695762,5.73705078,25696.0,25695.0,0.1142574]
[1693896695996,5.73687078,25696.0,25695.0,0.1142574]
[1693896696211,5.66961078,25696.0,25695.0,0.1142574]
[1693896699617,5.73993078,25696.0,25695.0,0.1142574]
[1693896699821,5.55338029,25696.0,25695.0,0.1142574]
[1693896700023,5.55236029,25696.0,25695.0,0.1142574]
[1693896700239,5.73821196,25696.0,25695.0,0.1142574]
[1693896700445,5.55212029,25696.0,25695.0,0.1142574]
[1693896700683,5.55032029,25696.0,25695.0,0.1142574]
[1693896701088,5.55038029,25696.0,25695.0,0.1142574]
[1693896701286,5.55056029,25696.0,25695.0,0.1142574]
[1693896701494,5.48372029,25696.0,25695.0,0.1142574]
[1693896704183,5.48372029,25696.0,25695.0,0.004]
[1693896704519,4.78372029,25696.0,25695.0,0.004]
[1693896705848,4.55107229,25696.0,25695.0,0.004]
[1693896706276,4.55107229,25696.0,25695.0,0.194]
[1693896706681,4.40740426,25696.0,25695.0,0.194]
[1693896707649,4.40740426,25696.0,25695.0,0.12533684]
[1693896708002,4.40740426,25696.0,25695.0,0.0444354]
[1693896716214,4.68658186,25696.0,25695.0,0.0444354]
[1693896716732,4.08416702,25696.0,25695.0,0.0444354]
[1693896717408,3.8470884,25696.0,25695.0,0.0444354]
[1693896717613,3.9318884,25696.0,25695.0,0.0444354]
[1693896718169,0.02,25693.0,25692.0,0.019796]
[1693896718405,2.49492917,25693.0,25692.0,0.019796]
[1693896718651,2.53200642,25693.0,25692.0,0.019796]
[1693896718892,2.53200642,25693.0,25688.0,0.35811763]
[1693896719153,0.09380307,25692.0,25688.0,0.97056827]
[1693896719395,1.88291111,25692.0,25689.0,0.0848]
[1693896720097,1.90291111,25692.0,25689.0,0.0848]
[1693896721610,0.02,25691.0,25689.0,0.0848]
[1693896722139,0.00068347,25690.0,25689.0,0.0988]
[1693896723793,0.00068347,25690.0,25689.0,0.0848]
[1693896724002,0.00068347,25690.0,25689.0,0.0988]
[1693896724414,0.00068347,25690.0,25689.0,0.0848]
[1693896724847,0.00568347,25690.0,25689.0,0.0988]
[1693896725602,0.04276088,25690.0,25689.0,0.0988]
[1693896728477,0.04276088,25690.0,25689.0,0.2688]
[1693896737167,0.27001258,25690.0,25689.0,0.2688]
[1693896738589,0.29001258,25690.0,25689.0,0.2688]
[1693896742285,0.06276088,25690.0,25689.0,0.2688]
[1693896743260,0.06276088,25690.0,25689.0,0.852707]
[1693896744053,0.06276088,25690.0,25689.0,1.92325927]
[1693896744054,0.04276088,25690.0,25689.0,1.92325927]
[1693896744251,0.04276088,25690.0,25689.0,2.50716627]
[1693896744987,0.00568347,25690.0,25689.0,2.50716627]
[1693896745379,0.005,25690.0,25689.0,2.50716627]
[1693896745922,0.0454556,25690.0,25689.0,2.50716627]
[1693896746324,0.04614031,25690.0,25689.0,2.50716627]
[1693896753628,0.04614031,25690.0,25689.0,2.53807087]
[1693896767871,0.04614031,25690.0,25689.0,2.53707087]
[1693896769874,0.04614031,25690.0,25689.0,2.51707087]
[1693896772092,0.03535215,25690.0,25689.0,2.51707087]
[1693896787270,0.03535215,25690.0,25689.0,2.61038964]
[1693896790305,0.03535215,25690.0,25689.0,2.7503678]
[1693896791067,0.03535215,25690.0,25689.0,2.61038964]
[1693896795233,0.03535215,25690.0,25689.0,4.16998181]
[1693896795429,0.03535215,25690.0,25689.0,4.24196487]
[1693896795653,0.03535215,25690.0,25689.0,4.24148487]
[1693896795654,0.00568471,25690.0,25689.0,4.24148487]
[1693896795784,0.00568471,25690.0,25689.0,4.24328487]
[1693896795985,0.00568471,25690.0,25689.0,4.24310487]
[1693896796187,0.005,25690.0,25689.0,4.24328487]
[1693896796448,0.005,25690.0,25689.0,4.24370487]
[1693896796588,0.005,25690.0,25689.0,4.24346487]
[1693896796981,0.25117565,25700.0,25699.0,0.08]
[1693896797192,0.25117565,25700.0,25699.0,2.07049811]
[1693896797444,0.03070781,25700.0,25699.0,2.45714338]
[1693896797917,0.03070781,25700.0,25699.0,2.30248527]
[1693896798126,0.03070781,25700.0,25699.0,2.45812927]
[1693896798331,0.03130668,25700.0,25699.0,2.45812927]
[1693896799373,0.03230668,25700.0,25699.0,2.46712927]
[1693896799583,0.03330668,25700.0,25699.0,2.47412927]
[1693896800276,0.03330668,25700.0,25699.0,2.39440897]
[1693896800688,0.04177682,25700.0,25699.0,2.39440897]
[1693896807208,0.04177682,25700.0,25699.0,2.56440897]
[1693896819847,0.05399419,25700.0,25699.0,2.56440897]
[1693896826825,0.07399419,25700.0,25699.0,2.56440897]
[1693896828285,0.07399419,25700.0,25699.0,2.56412927]
[1693896841145,0.07399419,25700.0,25699.0,2.56141524]
[1693896842857,0.07399419,25700.0,25699.0,2.59266772]
[1693896853813,0.07399419,25700.0,25699.0,2.5887635]
[1693896860436,0.022,25700.0,25699.0,2.5887635]
[1693896863988,0.021,25700.0,25699.0,2.5817635]
[1693896864347,0.021,25700.0,25699.0,2.5867635]
[1693896864547,0.021,25700.0,25699.0,3.1704435]
[1693896864753,0.023,25700.0,25699.0,3.1954435]
[1693896865172,0.021,25700.0,25699.0,3.1704435]
[1693896865377,0.021,25700.0,25699.0,3.13919102]
[1693896865576,0.022,25700.0,25699.0,3.15519102]
[1693896865952,0.07342003,25700.0,25699.0,3.15519102]
[1693896866381,0.07400619,25700.0,25699.0,3.15519102]